fUSD/lending_fUSD_20240617
["ID","MTS","AMOUNT","RATE_DAILY","PERIOD"]
[329742390,1718641851083,-224.303495,0.00021917,2]
[329742391,1718641851099,-646.87,0.00021917,2]
[329742392,1718641851108,-500.0,0.00021917,2]
[329742393,1718641851117,-500.0,0.00021917,2]
[329742394,1718641851128,-500.0,0.00021917,2]
[329742395,1718641851138,-852.80701044,0.00021917,2]
[329742396,1718641852147,-505.42298956,0.00021917,2]
[329742397,1718641852157,-500.0,0.00021917,2]
[329742398,1718641852166,-500.06419983,0.00021917,2]
[329742399,1718641852181,-1029.40580017,0.00021917,2]
[329742400,1718641852190,-224.303495,0.00021917,2]
[329742401,1718641852200,-521.53,0.00021917,2]
[329742402,1718641852210,-502.12286288,0.00021917,2]
[329742403,1718641852221,-500.0,0.00021917,2]
[329742404,1718641852231,-151.0,0.00021917,2]
[329742405,1718641852241,-4068.72,0.00021917,2]
[329742406,1718641852251,-500.0,0.00021917,2]
[329742407,1718641852262,-1879.94,0.00021917,2]
[329742408,1718641852272,-500.0,0.00021917,2]
[329742409,1718641852282,-1106.14,0.00021917,2]
[329742410,1718641852291,-500.0,0.00021917,2]
[329742411,1718641852302,-500.0,0.00021917,2]
[329742412,1718641852312,-500.0,0.00021917,2]
[329742413,1718641852323,-1999.32,0.00021917,2]
[329742414,1718641852332,-500.0,0.00021917,2]
[329742415,1718641852348,-3206.67,0.00021917,2]
[329742416,1718641852359,-8200.31,0.00021917,2]
[329742417,1718641852368,-171.277125,0.00021917,2]
[329742418,1718641852378,-500.0,0.00021917,2]
[329742419,1718641852388,-500.0,0.00021917,2]
[329742420,1718641852399,-501.20382551,0.00021917,2]
[329742421,1718641852408,-504.3174403,0.00021917,2]
[329742422,1718641852418,-1526.51,0.00021917,2]
[329742423,1718641852429,-808.63,0.00021917,2]
[329742424,1718641852440,-501.17811969,0.00021917,2]
[329742425,1718641852453,-772.48,0.00021917,2]
[329742426,1718641852463,-1073.67,0.00021917,2]
[329742427,1718641852473,-2557.94,0.00021917,2]
[329742428,1718641852483,-171.277125,0.00021917,2]
[329742429,1718641852495,-812.25,0.00021917,2]
[329742430,1718641852505,-500.0,0.00021917,2]
[329742431,1718641852515,-2179.64,0.00021917,2]
[329742432,1718641852526,-5056.01,0.00021917,2]
[329742433,1718641852536,-10099.08,0.00021917,2]
[329742434,1718641852546,-500.0,0.00021917,2]
[329742435,1718641852556,-500.0,0.00021917,2]
[329742436,1718641852565,-501.27739123,0.00021917,2]
[329742437,1718641852575,-503.42543648,0.00021917,2]
[329742438,1718641852584,-151.0,0.00021917,2]
[329742439,1718641852602,-921.8,0.00021917,2]
[329742440,1718641852612,-500.0,0.00021917,2]
[329742441,1718641852622,-736.64,0.00021917,2]
[329742442,1718641852631,-1164.99,0.00021917,2]
[329742443,1718641852641,-500.0,0.00021917,2]
[329742444,1718641852651,-500.0,0.00021917,2]
[329742445,1718641852660,-686.53,0.00021917,2]
[329742446,1718641852671,-1251.81,0.00021917,2]
[329742447,1718641852680,-1458.09133888,0.00021917,2]
[329742448,1718641852694,-4922.76866112,0.00021917,2]
[329742449,1718641852704,-9482.15,0.00021917,2]
[329742450,1718641852714,-3830.54,0.00021917,2]
[329742451,1718641852725,-500.0,0.00021917,2]
[329742452,1718641852735,-637.23,0.00021917,2]
[329742453,1718641852746,-898.53,0.00021917,2]
[329742454,1718641852756,-1021.68,0.00021917,2]
[329742455,1718641852766,-1302.7,0.00021917,2]
[329742456,1718641852776,-500.0,0.00021917,2]
[329742457,1718641852785,-1432.03,0.00021917,2]
[329742458,1718641852796,-4360.18,0.00021917,2]
[329742459,1718641852806,-3050.07,0.00021917,2]
[329742460,1718641852816,-151.0,0.00021917,2]
[329742461,1718641852826,-940.65,0.00021917,2]
[329742462,1718641852837,-1091.16,0.00021917,2]
[329742463,1718641852853,-545.52,0.00021917,2]
[329742464,1718641852863,-10491.82,0.00021917,2]
[329742465,1718641852872,-600.42,0.00021917,2]
[329742466,1718641852882,-1032.12,0.00021917,2]
[329742467,1718641852891,-151.0,0.00021917,2]
[329742468,1718641852901,-770.03,0.00021917,2]
[329742469,1718641852911,-151.0,0.00021917,2]
[329742470,1718641852920,-500.53,0.00021917,2]
[329742471,1718641852930,-2097.85,0.00021917,2]
[329742472,1718641852939,-500.0,0.00021917,2]
[329742473,1718641852950,-12156.85,0.00021917,2]
[329742474,1718641852960,-500.0,0.00021917,2]
[329742475,1718641852970,-500.0,0.00021917,2]
[329742476,1718641852980,-151.0,0.00021917,2]
[329742477,1718641852990,-2960.52,0.00021917,2]
[329742478,1718641852999,-506.1721337,0.00021917,2]
[329742479,1718641853009,-500.0,0.00021917,2]
[329742480,1718641853019,-500.0,0.00021917,2]
[329742481,1718641853029,-4902.74,0.00021917,2]
[329742482,1718641853040,-500.0,0.00021917,2]
[329742483,1718641853050,-3881.03,0.00021917,2]
[329742484,1718641853060,-1132.4,0.00021917,2]
[329742485,1718641853070,-500.0,0.00021917,2]
[329742486,1718641853080,-2197.96,0.00021917,2]
[329742487,1718641853097,-500.0,0.00021917,2]
[329742488,1718641853107,-661.74,0.00021917,2]
[329742489,1718641853118,-1659.99,0.00021917,2]
[329742490,1718641853128,-982.37,0.00021917,2]
[329742491,1718641853138,-500.0,0.00021917,2]
[329742492,1718641853148,-19737.36,0.00021917,2]
[329742493,1718641853158,-500.0,0.00021917,2]
[329742494,1718641853168,-500.0,0.00021917,2]
[329742495,1718641853178,-701.01,0.00021917,2]
[329742496,1718641853188,-1095.87,0.00021917,2]
[329742497,1718641853198,-2792.02,0.00021917,2]
[329742498,1718641853207,-500.0,0.00021917,2]
[329742499,1718641853218,-4640.97,0.00021917,2]
[329742500,1718641853228,-2647.4,0.00021917,2]
[329742501,1718641853238,-2518.22,0.00021917,2]
[329742502,1718641853247,-516.99,0.00021917,2]
[329742503,1718641853257,-4640.97,0.00021917,2]
[329742504,1718641853267,-4640.97,0.00021917,2]
[329742505,1718641853278,-4640.97,0.00021917,2]
[329742506,1718641853288,-500.0,0.00021917,2]
[329742507,1718641853298,-500.0,0.00021917,2]
[329742508,1718641853307,-680.05,0.00021917,2]
[329742509,1718641853318,-1028.61,0.00021917,2]
[329742510,1718641853328,-4640.97,0.00021917,2]
[329742511,1718641853338,-4640.97,0.00021917,2]
[329742512,1718641853355,-4640.97,0.00021917,2]
[329742513,1718641853365,-513.87,0.00021917,2]
[329742514,1718641853376,-500.0,0.00021917,2]
[329742515,1718641853386,-151.0,0.00021917,2]
[329742516,1718641853396,-500.0,0.00021917,2]
[329742517,1718641853406,-500.0,0.00021917,2]
[329742518,1718641853416,-500.0,0.00021917,2]
[329742519,1718641853426,-4243.56,0.00021917,2]
[329742520,1718641853436,-1000.89,0.00021917,2]
[329742521,1718641853446,-500.0,0.00021917,2]
[329742522,1718641853460,-1470.25,0.00021917,2]
[329742523,1718641853469,-10997.81,0.00021917,2]
[329742524,1718641853479,-988.34,0.00021917,2]
[329742525,1718641853490,-768.91,0.00021917,2]
[329742526,1718641853500,-500.0,0.00021917,2]
[329742527,1718641853510,-5583.92,0.00021917,2]
[329742528,1718641853520,-1779.39,0.00021917,2]
[329742529,1718641853534,-1779.39,0.00021917,2]
[329742530,1718641853544,-1503.83890462,0.00021917,2]
[329742531,1718641853558,-275.55109538,0.00021917,2]
[329742532,1718641853568,-1673.98,0.00021917,2]
[329742533,1718641853578,-1779.39,0.00021917,2]
[329742534,1718641853588,-2865.60306624,0.00021917,2]
[329742535,1718641853606,-981.23693376,0.00021917,2]
[329742536,1718641853616,-252.60679938,0.00021917,2]
[329742537,1718641853628,-1526.78320062,0.00021917,2]
[329742538,1718641853638,-1779.39,0.00021917,2]
[329742539,1718641853648,-1779.39,0.00021917,2]
[329742540,1718641853658,-1779.39,0.00021917,2]
[329742541,1718641853667,-1779.39,0.00021917,2]
[329742542,1718641853678,-500.0,0.00021917,2]
[329742543,1718641853688,-500.0,0.00021917,2]
[329742544,1718641853697,-6340.94022378,0.00021917,2]
[329742545,1718641853711,-7643.22977622,0.00021917,2]
[329742546,1718641853721,-500.0,0.00021917,2]
[329742547,1718641853732,-1786.11,0.00021917,2]
[329742548,1718641853741,-500.0,0.00021917,2]
[329742549,1718641853751,-2135.77,0.00021917,2]
[329742550,1718641853761,-514.2437727,0.00021917,2]
[329742551,1718641853771,-500.0,0.00021917,2]
[329742552,1718641853781,-2648.53,0.00021917,2]
[329742553,1718641853791,-1588.73,0.00021917,2]
[329742554,1718641853801,-522.28714293,0.00021917,2]
[329742555,1718641853811,-1578.89575599,0.00021917,2]
[329742556,1718641853930,-4407.07424401,0.00021917,2]
[329742557,1718641853940,-7474.01,0.00021917,2]
[329742558,1718641853950,-151.0,0.00021917,2]
[329742559,1718641853960,-4039.42,0.00021917,2]
[329742560,1718641853970,-3724.8,0.00021917,2]
[329742561,1718641853980,-258.54963738,0.00021917,2]
[329742562,1718641853989,-500.0,0.00021917,2]
[329742563,1718641853999,-800.64,0.00021917,2]
[329742564,1718641854009,-500.0,0.00021917,2]
[329742565,1718641854019,-151.0,0.00021917,2]
[329742566,1718641854029,-638.31,0.00021917,2]
[329742567,1718641854039,-916.77,0.00021917,2]
[329742568,1718641854049,-1063.16,0.00021917,2]
[329742569,1718641854059,-500.0,0.00021917,2]
[329742570,1718641854069,-4062.29,0.00021917,2]
[329742571,1718641854079,-531.58,0.00021917,2]
[329742572,1718641854090,-2433.64,0.00021917,2]
[329742573,1718641854106,-2059.54,0.00021917,2]
[329742574,1718641854116,-56182.6,0.00021917,2]
[329742575,1718641854126,-11647.81,0.00021917,2]
[329742576,1718641854136,-3914.22,0.00021917,2]
[329742577,1718641854146,-500.0,0.00021917,2]
[329742578,1718641854156,-854.35,0.00021917,2]
[329742579,1718641854166,-500.0,0.00021917,2]
[329742580,1718641854176,-595.15,0.00021917,2]
[329742581,1718641854186,-500.0,0.00021917,2]
[329742582,1718641854197,-500.0,0.00021917,2]
[329742583,1718641854207,-874.89,0.00021917,2]
[329742584,1718641854217,-1110.1,0.00021917,2]
[329742585,1718641854227,-694.62,0.00021917,2]
[329742586,1718641854238,-3909.57,0.00021917,2]
[329742587,1718641854248,-500.0,0.00021917,2]
[329742588,1718641854258,-2007.88,0.00021917,2]
[329742589,1718641854268,-3028.84,0.00021917,2]
[329742590,1718641854278,-8174.11,0.00021917,2]
[329742591,1718641854288,-3373.87611861,0.00021917,2]
[329742592,1718641854301,-634.73701392,0.00021917,2]
[329742593,1718641854313,-406.91787054,0.00021917,2]
[329742594,1718641854325,-1079.93899693,0.00021917,2]
[329742595,1718641854335,-260.06100307,0.00021917,2]
[329742596,1718641854356,-239.93899693,0.00021917,2]
[329742597,1718641854367,-42.55000473,0.00021917,2]
[329742598,1718641854380,-661.2104046,0.00021917,2]
[329742600,1718641854736,-370.09329007,0.00017259,2]
[329742601,1718641854749,-275.02634075,0.00017259,2]
[329742602,1718641854759,-66.63124938,0.00021917,2]
[329742603,1718641854772,-903.814,0.00021917,2]
[329742604,1718641854784,-864.39422921,0.00021917,2]
[329742605,1718641854796,-931.13278959,0.00021917,2]
[329742606,1718641854809,-553.25913984,0.00021917,2]
[329742607,1718641854822,-628.19818265,0.00021917,2]
[329742608,1718641854833,-9.99522499,0.00021917,2]
[329742609,1718641854852,-639.07477501,0.00021917,2]
[329742610,1718641854863,-419.62625037,0.00021917,2]
[329742611,1718641855058,-436.21253548,0.00021917,2]
[329742612,1718641855091,-63.78746452,0.00021917,2]
[329742613,1718641855106,-746.11,0.00021917,2]
[329742614,1718641855116,-1595.1,0.00021917,2]
[329742615,1718641855128,-500.0,0.00021917,2]
[329742616,1718641855139,-541.66,0.00021917,2]
[329742617,1718641855149,-560.95,0.00021917,2]
[329742618,1718641855160,-500.0,0.00021917,2]
[329742619,1718641855170,-500.0,0.00021917,2]
[329742620,1718641855180,-3659.3,0.00021917,2]
[329742621,1718641855189,-500.0,0.00021917,2]
[329742622,1718641855199,-2693.34,0.00021917,2]
[329742623,1718641855210,-3113.10992184,0.00021917,2]
[329742624,1718641855222,-650.36277005,0.00021917,2]
[329742625,1718641855234,-748.63230573,0.00021917,2]
[329742626,1718641855246,-14125.83500238,0.00021917,2]
[329742627,1718641855255,-5141.2,0.00021917,2]
[329742628,1718641855266,-3844.78,0.00021917,2]
[329742629,1718641855276,-3925.75,0.00021917,2]
[329742630,1718641855286,-1426.8,0.00021917,2]
[329742631,1718641855296,-888.15,0.00021917,2]
[329742632,1718641855306,-500.0,0.00021917,2]
[329742633,1718641855316,-500.0,0.00021917,2]
[329742634,1718641855325,-500.82408083,0.00021917,2]
[329742635,1718641855335,-500.0,0.00021917,2]
[329742636,1718641855351,-500.0,0.00021917,2]
[329742637,1718641855361,-500.0,0.00021917,2]
[329742638,1718641855372,-500.0,0.00021917,2]
[329742639,1718641855383,-1068.17,0.00021917,2]
[329742640,1718641855393,-500.0,0.00021917,2]
[329742641,1718641855403,-500.0,0.00021917,2]
[329742642,1718641855413,-500.0,0.00021917,2]
[329742643,1718641855423,-500.0,0.00021917,2]
[329742644,1718641855433,-500.0,0.00021917,2]
[329742645,1718641855448,-500.0,0.00021917,2]
[329742646,1718641855459,-500.0,0.00021917,2]
[329742647,1718641855469,-1577.35,0.00021917,2]
[329742648,1718641855479,-500.0,0.00021917,2]
[329742649,1718641855491,-500.0,0.00021917,2]
[329742650,1718641855501,-3035.73,0.00021917,2]
[329742651,1718641855511,-500.0,0.00021917,2]
[329742652,1718641855521,-500.0,0.00021917,2]
[329742653,1718641855532,-3758.56,0.00021917,2]
[329742654,1718641855542,-1914.66,0.00021917,2]
[329742655,1718641855552,-500.0,0.00021917,2]
[329742656,1718641855562,-500.0,0.00021917,2]
[329742657,1718641855572,-1595.05,0.00021917,2]
[329742658,1718641855581,-500.0,0.00021917,2]
[329742659,1718641855595,-500.0,0.00021917,2]
[329742660,1718641855605,-503.30183406,0.00021917,2]
[329742661,1718641855614,-500.0,0.00021917,2]
[329742662,1718641855624,-500.0,0.00021917,2]
[329742663,1718641855633,-4964.6,0.00021917,2]
[329742664,1718641855643,-500.0,0.00021917,2]
[329742665,1718641855653,-506.56,0.00021917,2]
[329742666,1718641855663,-500.0,0.00021917,2]
[329742667,1718641855673,-500.0,0.00021917,2]
[329742668,1718641855684,-500.28938703,0.00021917,2]
[329742669,1718641855694,-500.0,0.00021917,2]
[329742670,1718641855704,-500.0,0.00021917,2]
[329742671,1718641855714,-2093.97,0.00021917,2]
[329742672,1718641855724,-500.0,0.00021917,2]
[329742673,1718641855734,-500.0,0.00021917,2]
[329742674,1718641855744,-958.63,0.00021917,2]
[329742675,1718641855754,-500.0,0.00021917,2]
[329742676,1718641855765,-3889.3,0.00021917,2]
[329742677,1718641855775,-853.86,0.00021917,2]
[329742678,1718641855784,-1037.97,0.00021917,2]
[329742679,1718641855794,-11045.45,0.00021917,2]
[329742680,1718641855804,-4359.24,0.00021917,2]
[329742681,1718641855813,-1072.51,0.00021917,2]
[329742682,1718641855824,-1328.35,0.00021917,2]
[329742683,1718641855834,-500.0,0.00021917,2]
[329742684,1718641855846,-500.0,0.00021917,2]
[329742685,1718641855856,-98887.54020719,0.00021917,2]
[329742686,1718641855866,-500.0,0.00021917,2]
[329742687,1718641855876,-500.0,0.00021917,2]
[329742688,1718641855886,-500.0,0.00021917,2]
[329742689,1718641855896,-500.0,0.00021917,2]
[329742690,1718641855906,-169.58144556,0.00021917,2]
[329742691,1718641855916,-151.0,0.00021917,2]
[329742692,1718641855927,-1183.13,0.00021917,2]
[329742693,1718641855937,-500.0,0.00021917,2]
[329742694,1718641855947,-1346.09,0.00021917,2]
[329742695,1718641855957,-500.0,0.00021917,2]
[329742696,1718641855967,-3800.85,0.00021917,2]
[329742697,1718641855977,-301.58,0.00021918,2]
[329742698,1718641855988,-250.0,0.00021918,2]
[329742699,1718641855998,-1559.0,0.00021918,2]
[329742700,1718641856007,-26192.0,0.00021918,2]
[329742701,1718641856017,-151.0,0.00021918,2]
[329742702,1718641856029,-1000.0,0.00022049,2]
[329742703,1718641856040,-193.41797284,0.00022091,2]
[329742704,1718641856050,-151.0,0.00022091,7]
[329742705,1718641856061,-152.985854,0.00022091,7]
[329742706,1718641856071,-151.0,0.00022091,7]
[329742707,1718641856082,-253.389796,0.00022091,7]
[329742708,1718641856095,-273.274196,0.00022091,7]
[329742709,1718641856107,-273.274196,0.00022091,7]
[329742710,1718641856117,-208.65807696,0.00022091,2]
[329742711,1718641856130,-4640.97,0.00022189,3]
[329742712,1718641856140,-500.0,0.0002219,3]
[329742713,1718641856150,-501.10028484,0.0002219,3]
[329742714,1718641856161,-500.0,0.0002219,3]
[329742715,1718641856171,-500.0,0.0002219,3]
[329742716,1718641856182,-500.0,0.0002219,3]
[329742717,1718641856192,-500.0,0.0002219,3]
[329742718,1718641856203,-500.0,0.0002219,3]
[329742719,1718641856214,-500.0,0.0002219,3]
[329742720,1718641856223,-500.0,0.0002219,3]
[329742721,1718641856233,-500.0,0.0002219,3]
[329742722,1718641856244,-500.0,0.0002219,3]
[329742723,1718641856254,-500.0,0.0002219,3]
[329742724,1718641856264,-500.0,0.0002219,3]
[329742725,1718641856274,-500.0,0.0002219,3]
[329742726,1718641856285,-500.0,0.0002219,3]
[329742727,1718641856294,-500.0,0.0002219,3]
[329742728,1718641856304,-500.0,0.0002219,3]
[329742729,1718641856315,-347.34232327,0.0002219,3]
[329742730,1718641856325,-500.0,0.0002219,3]
[329742731,1718641856334,-500.0,0.0002219,3]
[329742732,1718641856350,-500.0,0.0002219,3]
[329742733,1718641856360,-500.0,0.0002219,3]
[329742734,1718641856369,-500.0,0.0002219,3]
[329742735,1718641856378,-500.0,0.0002219,3]
[329742736,1718641856389,-500.0,0.0002219,3]
[329742737,1718641856399,-500.0,0.0002219,3]
[329742738,1718641856408,-500.0,0.0002219,3]
[329742739,1718641856418,-269.05669343,0.0002219,3]
[329742740,1718641856427,-500.0,0.0002219,3]
[329742741,1718641856437,-500.0,0.0002219,3]
[329742742,1718641856448,-500.0,0.0002219,3]
[329742743,1718641856462,-500.0,0.0002219,3]
[329742744,1718641856472,-500.0,0.0002219,3]
[329742745,1718641856482,-547.07,0.0002219,3]
[329742746,1718641856493,-500.0,0.0002219,3]
[329742747,1718641856502,-500.0,0.0002219,3]
[329742748,1718641856512,-500.0,0.0002219,3]
[329742749,1718641856522,-568.14117772,0.0002219,3]
[329742750,1718641856535,-500.0,0.0002219,3]
[329742751,1718641856547,-500.0,0.0002219,3]
[329742752,1718641856556,-500.0,0.0002219,3]
[329742753,1718641856566,-500.0,0.0002219,3]
[329742754,1718641856576,-500.0,0.0002219,3]
[329742755,1718641856586,-500.0,0.0002219,3]
[329742756,1718641856599,-500.0,0.0002219,3]
[329742757,1718641856609,-500.0,0.0002219,3]
[329742758,1718641856620,-500.0,0.0002219,3]
[329742759,1718641856630,-5000.0,0.0002219,3]
[329742760,1718641856640,-500.0,0.0002219,3]
[329742761,1718641856651,-500.0,0.0002219,3]
[329742762,1718641856661,-500.0,0.0002219,3]
[329742763,1718641856671,-500.0,0.0002219,3]
[329742764,1718641856681,-500.0,0.0002219,3]
[329742765,1718641856691,-500.0,0.0002219,3]
[329742766,1718641856701,-500.0,0.0002219,3]
[329742767,1718641856711,-500.0,0.0002219,3]
[329742768,1718641856721,-500.0,0.0002219,3]
[329742769,1718641856730,-500.0,0.0002219,3]
[329742770,1718641856740,-500.0,0.0002219,3]
[329742771,1718641856750,-500.0,0.0002219,3]
[329742772,1718641856759,-500.0,0.0002219,3]
[329742773,1718641856768,-500.0,0.0002219,3]
[329742774,1718641856778,-730.52,0.0002219,3]
[329742775,1718641856788,-500.0,0.0002219,3]
[329742776,1718641856797,-500.0,0.0002219,3]
[329742777,1718641856807,-500.0,0.0002219,3]
[329742778,1718641856817,-500.0,0.0002219,3]
[329742779,1718641856826,-511.37564729,0.0002219,3]
[329742780,1718641856836,-500.0,0.0002219,3]
[329742781,1718641856848,-500.0,0.0002219,3]
[329742782,1718641856857,-500.0,0.0002219,3]
[329742783,1718641856867,-500.0,0.0002219,3]
[329742784,1718641856876,-500.0,0.0002219,3]
[329742785,1718641856885,-500.0,0.0002219,3]
[329742786,1718641856894,-500.0,0.0002219,3]
[329742787,1718641856904,-500.0,0.0002219,3]
[329742788,1718641856914,-500.0,0.0002219,3]
[329742789,1718641856923,-500.0,0.0002219,3]
[329742790,1718641856934,-500.0,0.0002219,3]
[329742791,1718641856944,-500.0,0.0002219,3]
[329742792,1718641856954,-500.0,0.0002219,3]
[329742793,1718641856965,-500.0,0.0002219,3]
[329742794,1718641856975,-500.0,0.0002219,3]
[329742795,1718641856985,-500.0,0.0002219,3]
[329742796,1718641856995,-500.0,0.0002219,3]
[329742797,1718641857005,-500.0,0.0002219,3]
[329742798,1718641857015,-500.0,0.0002219,3]
[329742799,1718641857025,-847.09,0.0002219,3]
[329742800,1718641857036,-500.0,0.0002219,3]
[329742801,1718641857047,-500.0,0.0002219,3]
[329742802,1718641857057,-500.0,0.0002219,3]
[329742803,1718641857068,-500.0,0.0002219,3]
[329742804,1718641857078,-523.35796666,0.0002219,3]
[329742805,1718641857088,-500.0,0.0002219,3]
[329742806,1718641857103,-500.0,0.0002219,3]
[329742807,1718641857115,-500.0,0.0002219,3]
[329742808,1718641857125,-500.0,0.0002219,3]
[329742809,1718641857134,-500.0,0.0002219,3]
[329742810,1718641857144,-500.0,0.0002219,3]
[329742811,1718641857153,-500.0,0.0002219,3]
[329742812,1718641857162,-500.0,0.0002219,3]
[329742813,1718641857172,-500.0,0.0002219,3]
[329742814,1718641857182,-546.18,0.0002219,3]
[329742815,1718641857192,-500.0,0.0002219,3]
[329742816,1718641857201,-500.0,0.0002219,3]
[329742817,1718641857212,-500.0,0.0002219,3]
[329742818,1718641857223,-500.0,0.0002219,3]
[329742819,1718641857233,-514.26748436,0.0002219,3]
[329742820,1718641857243,-500.0,0.0002219,3]
[329742821,1718641857252,-557.13,0.0002219,3]
[329742822,1718641857263,-500.0,0.0002219,3]
[329742823,1718641857273,-619.16213466,0.0002219,3]
[329742824,1718641857283,-500.0,0.0002219,3]
[329742825,1718641857293,-500.0,0.0002219,3]
[329742826,1718641857303,-500.0,0.0002219,3]
[329742827,1718641857313,-500.0,0.0002219,3]
[329742828,1718641857322,-500.0,0.0002219,3]
[329742829,1718641857333,-500.0,0.0002219,3]
[329742830,1718641857345,-500.0,0.0002219,3]
[329742831,1718641857357,-500.0,0.0002219,3]
[329742832,1718641857368,-500.0,0.0002219,3]
[329742833,1718641857378,-500.0,0.0002219,3]
[329742834,1718641857388,-500.0,0.0002219,3]
[329742835,1718641857398,-500.0,0.0002219,3]
[329742836,1718641857407,-500.0,0.0002219,3]
[329742837,1718641857417,-500.0,0.0002219,3]
[329742838,1718641857426,-500.0,0.0002219,3]
[329742839,1718641857436,-500.0,0.0002219,3]
[329742840,1718641857451,-500.0,0.0002219,3]
[329742841,1718641857461,-500.0,0.0002219,3]
[329742842,1718641857470,-500.0,0.0002219,3]
[329742843,1718641857480,-500.0,0.0002219,3]
[329742844,1718641857491,-500.0,0.0002219,3]
[329742845,1718641857501,-362.64813286,0.0002219,3]
[329742846,1718641857511,-500.0,0.0002219,3]
[329742847,1718641857521,-500.0,0.0002219,3]
[329742848,1718641857534,-500.0,0.0002219,3]
[329742849,1718641857544,-500.0,0.0002219,3]
[329742850,1718641857554,-500.0,0.0002219,3]
[329742851,1718641857563,-500.0,0.0002219,3]
[329742852,1718641857572,-500.0,0.0002219,3]
[329742853,1718641857583,-200.0,0.0002219,3]
[329742854,1718641857598,-679.47,0.0002219,3]
[329742855,1718641857608,-500.0,0.0002219,3]
[329742856,1718641857618,-500.0,0.0002219,3]
[329742857,1718641857629,-500.0,0.0002219,3]
[329742858,1718641857639,-500.0,0.0002219,3]
[329742859,1718641857650,-500.0,0.0002219,3]
[329742860,1718641857659,-500.0,0.0002219,3]
[329742861,1718641857669,-500.0,0.0002219,3]
[329742862,1718641857679,-500.0,0.0002219,3]
[329742863,1718641857689,-442.43866449,0.0002219,3]
[329742864,1718641857699,-500.0,0.0002219,3]
[329742865,1718641857709,-500.0,0.0002219,3]
[329742866,1718641857718,-623.82,0.0002219,3]
[329742867,1718641857728,-500.0,0.0002219,3]
[329742868,1718641857738,-500.0,0.0002219,3]
[329742869,1718641857748,-500.0,0.0002219,3]
[329742870,1718641857757,-593.32,0.0002219,3]
[329742871,1718641857767,-500.0,0.0002219,3]
[329742872,1718641857776,-500.0,0.0002219,3]
[329742873,1718641857786,-500.0,0.0002219,3]
[329742874,1718641857796,-500.0,0.0002219,3]
[329742875,1718641857805,-641.65,0.0002219,3]
[329742876,1718641857815,-500.0,0.0002219,3]
[329742877,1718641857824,-500.0,0.0002219,3]
[329742878,1718641857834,-452.5528399,0.0002219,3]
[329742879,1718641857848,-500.0,0.0002219,3]
[329742880,1718641857858,-533.61,0.0002219,3]
[329742881,1718641857867,-500.0,0.0002219,3]
[329742882,1718641857877,-500.0,0.0002219,3]
[329742883,1718641857887,-717.86,0.0002219,3]
[329742884,1718641857897,-773.28,0.0002219,3]
[329742885,1718641857906,-627.26,0.0002219,3]
[329742886,1718641857916,-500.0,0.0002219,3]
[329742887,1718641857926,-703.25,0.0002219,3]
[329742888,1718641857936,-500.0,0.0002219,3]
[329742889,1718641857945,-500.0,0.0002219,3]
[329742890,1718641857955,-600.04,0.0002219,3]